[Event "Titled Tuesday Blitz August 1 Late 2023"]
[White "Urbina Perez, Juan Antonio"]
[Black "Przybylski, Wojciech"]
[WhiteFideId "2217368"]
[BlackFideId "1117599"]
[WhiteElo "2454"]
[BlackElo "2633"]
[Result "0-1"]
[Round "7"]
[TimeControl "180+1"]
[Date "2023.08.01"]
[WhiteClock "0:00:00"]
[BlackClock "0:00:42"]
[Board "64"]

1. d4 {[%clk 0:03:00]}  Nf6 {[%clk 0:02:59]} 2. c4 {[%clk 0:03:00]}  e6 {[%clk 0:02:59]} 3. Nf3 {[%clk 0:03:00]}  d5 {[%clk 0:02:58]} 4. g3 {[%clk 0:02:59]}  Bb4+ {[%clk 0:02:56]} 5. Bd2 {[%clk 0:02:55]}  Be7 {[%clk 0:02:56]} 6. Bg2 {[%clk 0:02:53]}  O-O {[%clk 0:02:56]} 7. O-O {[%clk 0:02:52]}  Nbd7 {[%clk 0:02:57]} 8. cxd5 {[%clk 0:02:49]}  exd5 {[%clk 0:02:56]} 9. Nc3 {[%clk 0:02:48]}  c6 {[%clk 0:02:56]} 10. h4 {[%clk 0:02:41]}  Re8 {[%clk 0:02:55]} 11. Rb1 {[%clk 0:02:35]}  a5 {[%clk 0:02:54]} 12. a3 {[%clk 0:02:32]}  Ne4 {[%clk 0:02:51]} 13. Nxe4 {[%clk 0:02:24]}  dxe4 {[%clk 0:02:51]} 14. Ne5 {[%clk 0:02:23]}  Nf8 {[%clk 0:02:35]} 15. Bc3 {[%clk 0:02:10]}  f6 {[%clk 0:02:33]} 16. Nc4 {[%clk 0:02:02]}  Be6 {[%clk 0:02:28]} 17. Ne3 {[%clk 0:01:58]}  f5 {[%clk 0:02:27]} 18. b4 {[%clk 0:01:43]}  a4 {[%clk 0:02:26]} 19. d5 {[%clk 0:01:31]}  cxd5 {[%clk 0:02:21]} 20. Nc2 {[%clk 0:01:26]}  Rc8 {[%clk 0:02:16]} 21. Bb2 {[%clk 0:01:24]}  Bf6 {[%clk 0:01:57]} 22. Nd4 {[%clk 0:01:19]}  Bd7 {[%clk 0:01:56]} 23. e3 {[%clk 0:01:15]}  Kh8 {[%clk 0:01:53]} 24. b5 {[%clk 0:01:14]}  Ng6 {[%clk 0:01:50]} 25. Qxa4 {[%clk 0:01:12]}  Ne5 {[%clk 0:01:48]} 26. Rfc1 {[%clk 0:01:02]}  Rxc1+ {[%clk 0:01:45]} 27. Rxc1 {[%clk 0:00:55]}  Nd3 {[%clk 0:01:42]} 28. Rc2 {[%clk 0:00:55]}  f4 {[%clk 0:01:31]} 29. gxf4 {[%clk 0:00:46]}  Bg4 {[%clk 0:01:13]} 30. b6 {[%clk 0:00:22]}  Rg8 {[%clk 0:01:03]} 31. Ba1 {[%clk 0:00:18]}  Qxb6 {[%clk 0:00:53]} 32. Bf1 {[%clk 0:00:00]}  Qb1 {[%clk 0:00:42]} 0-1


[Site "https://www.chess.com"]

[Event "Titled Tuesday Blitz August 1 Late 2023"]
[White "Lehtosaari, Mauri"]
[Black "Araujo Sanchez, Josue"]
[WhiteFideId "501999"]
[BlackFideId "6416896"]
[WhiteElo "2453"]
[BlackElo "2620"]
[Result "1-0"]
[Round "7"]
[TimeControl "180+1"]
[Date "2023.08.01"]
[WhiteClock "0:00:41"]
[BlackClock "0:00:59"]
[Board "65"]

1. d4 {[%clk 0:03:00]}  c6 {[%clk 0:03:00]} 2. Nf3 {[%clk 0:03:00]}  d5 {[%clk 0:02:57]} 3. Bf4 {[%clk 0:02:53]}  Bf5 {[%clk 0:02:56]} 4. e3 {[%clk 0:02:52]}  e5 {[%clk 0:02:57]} 5. Nxe5 {[%clk 0:02:47]}  Nf6 {[%clk 0:02:56]} 6. h3 {[%clk 0:02:45]}  Bd6 {[%clk 0:02:54]} 7. Nd2 {[%clk 0:02:45]}  O-O {[%clk 0:02:52]} 8. Be2 {[%clk 0:02:42]}  Qc7 {[%clk 0:02:51]} 9. O-O {[%clk 0:02:36]}  c5 {[%clk 0:02:50]} 10. c3 {[%clk 0:02:36]}  Nc6 {[%clk 0:02:49]} 11. Ndf3 {[%clk 0:02:32]}  Rfe8 {[%clk 0:02:47]} 12. Bb5 {[%clk 0:02:30]}  a6 {[%clk 0:02:43]} 13. Bxc6 {[%clk 0:02:26]}  bxc6 {[%clk 0:02:43]} 14. Qa4 {[%clk 0:02:25]}  Re6 {[%clk 0:02:35]} 15. Ng5 {[%clk 0:02:18]}  cxd4 {[%clk 0:02:17]} 16. Nxe6 {[%clk 0:02:13]}  fxe6 {[%clk 0:02:17]} 17. cxd4 {[%clk 0:02:11]}  c5 {[%clk 0:02:18]} 18. Qc6 {[%clk 0:01:58]}  Qxc6 {[%clk 0:01:55]} 19. Nxc6 {[%clk 0:01:59]}  Bf8 {[%clk 0:01:52]} 20. dxc5 {[%clk 0:01:52]}  Bxc5 {[%clk 0:01:53]} 21. Rfc1 {[%clk 0:01:51]}  Bf8 {[%clk 0:01:51]} 22. Nd4 {[%clk 0:01:44]}  g6 {[%clk 0:01:46]} 23. Nxf5 {[%clk 0:01:42]}  gxf5 {[%clk 0:01:47]} 24. Rc7 {[%clk 0:01:37]}  Ne8 {[%clk 0:01:43]} 25. Rb7 {[%clk 0:01:35]}  Bg7 {[%clk 0:01:42]} 26. Rc1 {[%clk 0:01:33]}  e5 {[%clk 0:01:41]} 27. Bg3 {[%clk 0:01:26]}  e4 {[%clk 0:01:35]} 28. Rd1 {[%clk 0:01:20]}  Rd8 {[%clk 0:01:35]} 29. b3 {[%clk 0:01:08]}  Nd6 {[%clk 0:01:29]} 30. Bxd6 {[%clk 0:01:05]}  Rxd6 {[%clk 0:01:29]} 31. Rc1 {[%clk 0:01:02]}  Bf8 {[%clk 0:01:14]} 32. Rc8 {[%clk 0:00:55]}  f4 {[%clk 0:01:14]} 33. Kf1 {[%clk 0:00:45]}  Rf6 {[%clk 0:01:12]} 34. Ke2 {[%clk 0:00:45]}  h6 {[%clk 0:01:08]} 35. Rd7 {[%clk 0:00:45]}  Rf5 {[%clk 0:01:06]} 36. b4 {[%clk 0:00:42]}  f3+ {[%clk 0:01:02]} 37. gxf3 {[%clk 0:00:41]}  exf3+ {[%clk 0:00:59]} 38. Kd3 {[%clk 0:00:41]} 1-0


[Site "https://www.chess.com"]

[Event "Titled Tuesday Blitz August 1 Late 2023"]
[White "Sun, Rick"]
[Black "Harriott, Tyrell"]
[WhiteFideId "30909481"]
[BlackFideId "2086484"]
[WhiteElo "2616"]
[BlackElo "2451"]
[Result "0-1"]
[Round "7"]
[TimeControl "180+1"]
[Date "2023.08.01"]
[WhiteClock "0:00:00"]
[BlackClock "0:00:30"]
[Board "66"]

1. e4 {[%clk 0:03:00]}  d5 {[%clk 0:02:58]} 2. exd5 {[%clk 0:02:58]}  Nf6 {[%clk 0:02:58]} 3. Nf3 {[%clk 0:02:57]}  Qxd5 {[%clk 0:02:55]} 4. Nc3 {[%clk 0:02:58]}  Qh5 {[%clk 0:02:55]} 5. Be2 {[%clk 0:02:57]}  Bg4 {[%clk 0:02:54]} 6. a4 {[%clk 0:02:23]}  Nc6 {[%clk 0:02:53]} 7. a5 {[%clk 0:02:18]}  a6 {[%clk 0:02:43]} 8. d4 {[%clk 0:02:11]}  O-O-O {[%clk 0:02:42]} 9. Be3 {[%clk 0:02:02]}  e5 {[%clk 0:02:40]} 10. d5 {[%clk 0:01:52]}  Bb4 {[%clk 0:02:30]} 11. dxc6 {[%clk 0:01:04]}  Rxd1+ {[%clk 0:02:22]} 12. Rxd1 {[%clk 0:01:05]}  e4 {[%clk 0:01:58]} 13. cxb7+ {[%clk 0:00:51]}  Kxb7 {[%clk 0:01:56]} 14. Nd4 {[%clk 0:00:23]}  Qxa5 {[%clk 0:01:31]} 15. O-O {[%clk 0:00:19]}  Qh5 {[%clk 0:01:22]} 16. Ra1 {[%clk 0:00:08]}  Ra8 {[%clk 0:01:18]} 17. Bc4 {[%clk 0:00:06]}  Bc5 {[%clk 0:00:56]} 18. Ra5 {[%clk 0:00:04]}  Nd7 {[%clk 0:00:46]} 19. Rfa1 {[%clk 0:00:04]}  f5 {[%clk 0:00:45]} 20. Bd5+ {[%clk 0:00:04]}  Kb8 {[%clk 0:00:42]} 21. Rxa6 {[%clk 0:00:03]}  Rxa6 {[%clk 0:00:37]} 22. Rxa6 {[%clk 0:00:04]}  Nb6 {[%clk 0:00:34]} 23. Nc6+ {[%clk 0:00:04]}  Kc8 {[%clk 0:00:34]} 24. Bxc5 {[%clk 0:00:02]}  Be2 {[%clk 0:00:30]} 25. Ne7+ {[%clk 0:00:00]}  Kd7 {[%clk 0:00:30]} 0-1


[Site "https://www.chess.com"]

[Event "Titled Tuesday Blitz August 1 Late 2023"]
[White "Zhukova, Natalia"]
[Black "Musovic, Armin"]
[WhiteFideId "14101513"]
[BlackFideId "939935"]
[WhiteElo "2442"]
[BlackElo "2556"]
[Result "0-1"]
[Round "7"]
[TimeControl "180+1"]
[Date "2023.08.01"]
[WhiteClock "0:00:00"]
[BlackClock "0:00:14"]
[Board "69"]

1. c4 {[%clk 0:03:00]}  e5 {[%clk 0:02:55]} 2. Nc3 {[%clk 0:03:00]}  Bb4 {[%clk 0:02:55]} 3. Nd5 {[%clk 0:02:59]}  Bc5 {[%clk 0:02:56]} 4. Nf3 {[%clk 0:02:59]}  Nc6 {[%clk 0:02:55]} 5. e3 {[%clk 0:02:50]}  h6 {[%clk 0:02:53]} 6. d4 {[%clk 0:02:50]}  exd4 {[%clk 0:02:52]} 7. exd4 {[%clk 0:02:50]}  Be7 {[%clk 0:02:52]} 8. Bd3 {[%clk 0:02:46]}  Nf6 {[%clk 0:02:51]} 9. O-O {[%clk 0:02:35]}  O-O {[%clk 0:02:51]} 10. Nxe7+ {[%clk 0:02:29]}  Nxe7 {[%clk 0:02:47]} 11. d5 {[%clk 0:02:26]}  d6 {[%clk 0:02:48]} 12. h3 {[%clk 0:02:24]}  Bf5 {[%clk 0:02:47]} 13. Be3 {[%clk 0:02:21]}  Qd7 {[%clk 0:02:47]} 14. Bd4 {[%clk 0:02:19]}  Nh7 {[%clk 0:02:43]} 15. Re1 {[%clk 0:02:14]}  Bxd3 {[%clk 0:02:43]} 16. Qxd3 {[%clk 0:02:14]}  Ng6 {[%clk 0:02:39]} 17. Qc3 {[%clk 0:01:41]}  f6 {[%clk 0:02:30]} 18. Be3 {[%clk 0:01:25]}  Ng5 {[%clk 0:02:20]} 19. Nd4 {[%clk 0:01:19]}  c5 {[%clk 0:02:09]} 20. dxc6 {[%clk 0:01:16]}  bxc6 {[%clk 0:02:10]} 21. Bxg5 {[%clk 0:01:10]}  fxg5 {[%clk 0:02:08]} 22. Ne6 {[%clk 0:01:09]}  Rf6 {[%clk 0:02:05]} 23. Nd4 {[%clk 0:00:55]}  Raf8 {[%clk 0:02:01]} 24. Re2 {[%clk 0:00:50]}  Nf4 {[%clk 0:02:01]} 25. Rd2 {[%clk 0:00:50]}  g4 {[%clk 0:01:55]} 26. h4 {[%clk 0:00:45]}  c5 {[%clk 0:01:25]} 27. Nc2 {[%clk 0:00:37]}  Qf7 {[%clk 0:01:18]} 28. Rad1 {[%clk 0:00:29]}  Qh5 {[%clk 0:01:17]} 29. Qg3 {[%clk 0:00:27]}  Re6 {[%clk 0:01:13]} 30. Ne3 {[%clk 0:00:27]}  Rg6 {[%clk 0:00:59]} 31. Kh2 {[%clk 0:00:25]}  Qe5 {[%clk 0:00:57]} 32. Nd5 {[%clk 0:00:19]}  h5 {[%clk 0:00:57]} 33. Nxf4 {[%clk 0:00:18]}  Rxf4 {[%clk 0:00:56]} 34. Rd5 {[%clk 0:00:18]}  Qe4 {[%clk 0:00:45]} 35. Rxh5 {[%clk 0:00:17]}  Rgf6 {[%clk 0:00:42]} 36. Rg5 {[%clk 0:00:14]}  Qxc4 {[%clk 0:00:39]} 37. h5 {[%clk 0:00:12]}  Rxf2 {[%clk 0:00:31]} 38. Rxg4 {[%clk 0:00:11]}  R2f4 {[%clk 0:00:20]} 39. Rxg7+ {[%clk 0:00:10]}  Kh8 {[%clk 0:00:21]} 40. Rg6 {[%clk 0:00:05]}  Rh4+ {[%clk 0:00:21]} 41. Kg1 {[%clk 0:00:04]}  Rxg6 {[%clk 0:00:19]} 42. Qxg6 {[%clk 0:00:00]}  Qf4 {[%clk 0:00:14]} 0-1


[Site "https://www.chess.com"]

[Event "Titled Tuesday Blitz August 1 Late 2023"]
[White "Karamsetty, Jeevan"]
[Black "Carrasco Miranda, Andres"]
[WhiteFideId "2025337"]
[BlackFideId "3405990"]
[WhiteElo "2553"]
[BlackElo "2439"]
[Result "1-0"]
[Round "7"]
[TimeControl "180+1"]
[Date "2023.08.01"]
[WhiteClock "0:00:07"]
[BlackClock "0:00:00"]
[Board "70"]

1. e4 {[%clk 0:03:00]}  e5 {[%clk 0:02:55]} 2. Nf3 {[%clk 0:02:59]}  Nc6 {[%clk 0:02:55]} 3. Bc4 {[%clk 0:02:58]}  Bc5 {[%clk 0:02:55]} 4. c3 {[%clk 0:02:50]}  Nf6 {[%clk 0:02:54]} 5. d3 {[%clk 0:02:44]}  d6 {[%clk 0:02:52]} 6. O-O {[%clk 0:02:44]}  a5 {[%clk 0:02:51]} 7. d4 {[%clk 0:02:32]}  exd4 {[%clk 0:02:46]} 8. cxd4 {[%clk 0:02:31]}  Ba7 {[%clk 0:02:46]} 9. Nc3 {[%clk 0:02:27]}  Bg4 {[%clk 0:02:45]} 10. Be3 {[%clk 0:01:55]}  O-O {[%clk 0:02:45]} 11. Be2 {[%clk 0:01:48]}  Re8 {[%clk 0:02:44]} 12. h3 {[%clk 0:01:39]}  Bh5 {[%clk 0:02:42]} 13. d5 {[%clk 0:01:20]}  Bxf3 {[%clk 0:02:38]} 14. Bxf3 {[%clk 0:01:16]}  Bxe3 {[%clk 0:02:32]} 15. dxc6 {[%clk 0:01:12]}  Bb6 {[%clk 0:02:29]} 16. cxb7 {[%clk 0:01:12]}  Rb8 {[%clk 0:02:28]} 17. Qa4 {[%clk 0:01:03]}  Nd7 {[%clk 0:02:25]} 18. Be2 {[%clk 0:00:57]}  Rxb7 {[%clk 0:02:18]} 19. Bb5 {[%clk 0:00:53]}  Nc5 {[%clk 0:02:09]} 20. Qc2 {[%clk 0:00:53]}  Re7 {[%clk 0:02:01]} 21. Bc6 {[%clk 0:00:50]}  Rb8 {[%clk 0:02:01]} 22. Rad1 {[%clk 0:00:50]}  Nd7 {[%clk 0:01:48]} 23. Nd5 {[%clk 0:00:47]}  Re5 {[%clk 0:01:47]} 24. Kh1 {[%clk 0:00:40]}  Nf6 {[%clk 0:01:35]} 25. f4 {[%clk 0:00:36]}  Rh5 {[%clk 0:01:31]} 26. Nxb6 {[%clk 0:00:27]}  Rxb6 {[%clk 0:01:31]} 27. e5 {[%clk 0:00:27]}  Ng4 {[%clk 0:01:23]} 28. Qe2 {[%clk 0:00:21]}  Rxc6 {[%clk 0:00:52]} 29. Qxg4 {[%clk 0:00:20]}  g6 {[%clk 0:00:50]} 30. e6 {[%clk 0:00:18]}  Rf5 {[%clk 0:00:45]} 31. Rde1 {[%clk 0:00:12]}  fxe6 {[%clk 0:00:44]} 32. Rxe6 {[%clk 0:00:12]}  Rcc5 {[%clk 0:00:41]} 33. Rfe1 {[%clk 0:00:12]}  Rf8 {[%clk 0:00:38]} 34. Re7 {[%clk 0:00:12]}  Rcf5 {[%clk 0:00:37]} 35. g3 {[%clk 0:00:11]}  R5f7 {[%clk 0:00:35]} 36. R7e6 {[%clk 0:00:10]}  Qd7 {[%clk 0:00:34]} 37. Kh2 {[%clk 0:00:09]}  Kg7 {[%clk 0:00:33]} 38. Qf3 {[%clk 0:00:06]}  Qb5 {[%clk 0:00:33]} 39. Qc3+ {[%clk 0:00:06]}  Kg8 {[%clk 0:00:32]} 40. Re7 {[%clk 0:00:05]}  Qc5 {[%clk 0:00:31]} 41. Rxc7 {[%clk 0:00:04]}  Qxc3 {[%clk 0:00:30]} 42. Rxc3 {[%clk 0:00:03]}  Rb7 {[%clk 0:00:30]} 43. Rc2 {[%clk 0:00:04]}  Rfb8 {[%clk 0:00:29]} 44. Ree2 {[%clk 0:00:04]}  a4 {[%clk 0:00:29]} 45. Red2 {[%clk 0:00:05]}  Rb6 {[%clk 0:00:29]} 46. Kg2 {[%clk 0:00:06]}  Kf7 {[%clk 0:00:29]} 47. a3 {[%clk 0:00:06]}  Ke6 {[%clk 0:00:29]} 48. Kf3 {[%clk 0:00:07]}  Rb3+ {[%clk 0:00:30]} 49. Kg4 {[%clk 0:00:06]}  h5+ {[%clk 0:00:30]} 50. Kh4 {[%clk 0:00:06]}  R8b5 {[%clk 0:00:30]} 51. Rc6 {[%clk 0:00:05]}  Rd5 {[%clk 0:00:30]} 52. Re2+ {[%clk 0:00:06]}  Kd7 {[%clk 0:00:30]} 53. Ra6 {[%clk 0:00:06]}  Rd4 {[%clk 0:00:25]} 54. Ra7+ {[%clk 0:00:06]}  Kc6 {[%clk 0:00:25]} 55. Rg7 {[%clk 0:00:06]}  Rbd3 {[%clk 0:00:14]} 56. Rxg6 {[%clk 0:00:06]}  Rd2 {[%clk 0:00:15]} 57. Ree6 {[%clk 0:00:06]}  Rxb2 {[%clk 0:00:13]} 58. Kxh5 {[%clk 0:00:06]}  Rb3 {[%clk 0:00:13]} 59. f5 {[%clk 0:00:05]}  Rxa3 {[%clk 0:00:13]} 60. f6 {[%clk 0:00:06]}  Rf3 {[%clk 0:00:13]} 61. Rg7 {[%clk 0:00:06]}  a3 {[%clk 0:00:11]} 62. Ra7 {[%clk 0:00:06]}  Kb6 {[%clk 0:00:11]} 63. Ra8 {[%clk 0:00:06]}  Kb7 {[%clk 0:00:11]} 64. Ra5 {[%clk 0:00:06]}  Kb6 {[%clk 0:00:11]} 65. Ra8 {[%clk 0:00:06]}  Kb7 {[%clk 0:00:12]} 66. Ree8 {[%clk 0:00:07]}  Rxf6 {[%clk 0:00:09]} 67. Reb8+ {[%clk 0:00:07]}  Kc7 {[%clk 0:00:09]} 68. Rc8+ {[%clk 0:00:08]}  Kd7 {[%clk 0:00:10]} 69. Rd8+ {[%clk 0:00:08]}  Ke6 {[%clk 0:00:10]} 70. Re8+ {[%clk 0:00:08]}  Kd5 {[%clk 0:00:10]} 71. Ra5+ {[%clk 0:00:08]}  Kc6 {[%clk 0:00:10]} 72. Rxa3 {[%clk 0:00:07]}  Rd5+ {[%clk 0:00:10]} 73. Kh4 {[%clk 0:00:07]}  Rd4+ {[%clk 0:00:09]} 74. g4 {[%clk 0:00:07]}  d5 {[%clk 0:00:09]} 75. Ree3 {[%clk 0:00:07]}  Re4 {[%clk 0:00:09]} 76. Kg3 {[%clk 0:00:07]}  Rfe6 {[%clk 0:00:08]} 77. Rec3+ {[%clk 0:00:07]}  Kd6 {[%clk 0:00:08]} 78. h4 {[%clk 0:00:08]}  d4 {[%clk 0:00:07]} 79. Rd3 {[%clk 0:00:09]}  Re3+ {[%clk 0:00:06]} 80. Rxe3 {[%clk 0:00:09]}  dxe3 {[%clk 0:00:06]} 81. Kf3 {[%clk 0:00:08]}  e2 {[%clk 0:00:06]} 82. Ra1 {[%clk 0:00:09]}  Kd5 {[%clk 0:00:06]} 83. Re1 {[%clk 0:00:09]}  Rf6+ {[%clk 0:00:05]} 84. Kg3 {[%clk 0:00:09]}  Re6 {[%clk 0:00:05]} 85. h5 {[%clk 0:00:09]}  Kd4 {[%clk 0:00:04]} 86. g5 {[%clk 0:00:10]}  Ke3 {[%clk 0:00:01]} 87. h6 {[%clk 0:00:09]}  Re5 {[%clk 0:00:02]} 88. Kg4 {[%clk 0:00:08]}  Re4+ {[%clk 0:00:02]} 89. Kh5 {[%clk 0:00:08]}  Kf4 {[%clk 0:00:00]} 90. h7 {[%clk 0:00:07]} 1-0


[Site "https://www.chess.com"]

[Event "Titled Tuesday Blitz August 1 Late 2023"]
[White "Ambartsumova, Karina"]
[Black "FuenfgegenWilly"]
[WhiteFideId "4166299"]
[WhiteElo "2548"]
[BlackElo "2437"]
[Result "1-0"]
[Round "7"]
[TimeControl "180+1"]
[Date "2023.08.01"]
[WhiteClock "0:00:10"]
[BlackClock "0:00:08"]
[Board "72"]

1. c4 {[%clk 0:03:00]}  f5 {[%clk 0:02:57]} 2. Nf3 {[%clk 0:02:56]}  Nf6 {[%clk 0:02:57]} 3. g3 {[%clk 0:02:57]}  d6 {[%clk 0:02:58]} 4. Bg2 {[%clk 0:02:57]}  e5 {[%clk 0:02:58]} 5. d4 {[%clk 0:02:58]}  e4 {[%clk 0:02:59]} 6. Nh4 {[%clk 0:02:54]}  c5 {[%clk 0:02:52]} 7. d5 {[%clk 0:02:40]}  g6 {[%clk 0:02:48]} 8. O-O {[%clk 0:02:37]}  Bg7 {[%clk 0:02:49]} 9. Nc3 {[%clk 0:02:37]}  O-O {[%clk 0:02:43]} 10. f3 {[%clk 0:02:37]}  exf3 {[%clk 0:02:36]} 11. exf3 {[%clk 0:02:38]}  a6 {[%clk 0:02:35]} 12. Bf4 {[%clk 0:02:25]}  Nh5 {[%clk 0:02:31]} 13. Be3 {[%clk 0:02:09]}  f4 {[%clk 0:02:30]} 14. Bf2 {[%clk 0:01:58]}  Bf6 {[%clk 0:02:12]} 15. Qc2 {[%clk 0:01:37]}  Ng7 {[%clk 0:02:09]} 16. Bh1 {[%clk 0:01:24]}  b5 {[%clk 0:02:03]} 17. cxb5 {[%clk 0:01:18]}  axb5 {[%clk 0:02:04]} 18. Nxb5 {[%clk 0:01:18]}  Ba6 {[%clk 0:02:04]} 19. a4 {[%clk 0:01:16]}  Qb6 {[%clk 0:01:59]} 20. Ng2 {[%clk 0:01:10]}  fxg3 {[%clk 0:01:54]} 21. hxg3 {[%clk 0:01:07]}  Nd7 {[%clk 0:01:49]} 22. Ne3 {[%clk 0:01:02]}  Bxb5 {[%clk 0:01:01]} 23. axb5 {[%clk 0:01:03]}  Qxb5 {[%clk 0:01:02]} 24. Nc4 {[%clk 0:01:03]}  Rxa1 {[%clk 0:01:02]} 25. Rxa1 {[%clk 0:01:03]}  Qb8 {[%clk 0:01:02]} 26. Ra6 {[%clk 0:01:01]}  Nf5 {[%clk 0:01:00]} 27. Bg2 {[%clk 0:00:52]}  Qb5 {[%clk 0:00:59]} 28. Qa4 {[%clk 0:00:44]}  Rb8 {[%clk 0:00:56]} 29. Qxb5 {[%clk 0:00:42]}  Rxb5 {[%clk 0:00:56]} 30. Nxd6 {[%clk 0:00:42]}  Rxb2 {[%clk 0:00:51]} 31. Nxf5 {[%clk 0:00:42]}  gxf5 {[%clk 0:00:52]} 32. Rd6 {[%clk 0:00:37]}  Rb7 {[%clk 0:00:41]} 33. Bh3 {[%clk 0:00:37]}  Be5 {[%clk 0:00:36]} 34. Rc6 {[%clk 0:00:37]}  Rb1+ {[%clk 0:00:31]} 35. Kg2 {[%clk 0:00:34]}  Rb2 {[%clk 0:00:31]} 36. Bxf5 {[%clk 0:00:22]}  Bd4 {[%clk 0:00:30]} 37. Bxd7 {[%clk 0:00:20]}  Rxf2+ {[%clk 0:00:29]} 38. Kh3 {[%clk 0:00:21]}  Rxf3 {[%clk 0:00:28]} 39. Be6+ {[%clk 0:00:21]}  Kf8 {[%clk 0:00:27]} 40. d6 {[%clk 0:00:20]}  Be5 {[%clk 0:00:22]} 41. Rc8+ {[%clk 0:00:20]}  Kg7 {[%clk 0:00:21]} 42. d7 {[%clk 0:00:17]}  Rxg3+ {[%clk 0:00:20]} 43. Kh4 {[%clk 0:00:17]}  Rd3 {[%clk 0:00:20]} 44. Rxc5 {[%clk 0:00:08]}  Bf6+ {[%clk 0:00:18]} 45. Kg4 {[%clk 0:00:09]}  Rd6 {[%clk 0:00:19]} 46. Kf5 {[%clk 0:00:08]}  h5 {[%clk 0:00:18]} 47. Rc8 {[%clk 0:00:09]}  Bh4 {[%clk 0:00:16]} 48. Rg8+ {[%clk 0:00:09]}  Kh7 {[%clk 0:00:15]} 49. Rg1 {[%clk 0:00:07]}  Kh6 {[%clk 0:00:14]} 50. Rg6+ {[%clk 0:00:07]}  Kh7 {[%clk 0:00:14]} 51. Bg8+ {[%clk 0:00:08]}  Kh8 {[%clk 0:00:13]} 52. Rxd6 {[%clk 0:00:09]}  Bd8 {[%clk 0:00:13]} 53. Re6 {[%clk 0:00:09]}  Kg7 {[%clk 0:00:08]} 54. Re8 {[%clk 0:00:10]} 1-0


[Site "https://www.chess.com"]

[Event "Titled Tuesday Blitz August 1 Late 2023"]
[White "Golubev, Mikhail"]
[Black "WindWhistler11"]
[WhiteFideId "14100983"]
[WhiteElo "2541"]
[BlackElo "2433"]
[Result "1-0"]
[Round "7"]
[TimeControl "180+1"]
[Date "2023.08.01"]
[WhiteClock "0:00:08"]
[BlackClock "0:00:31"]
[Board "74"]

1. e4 {[%clk 0:03:00]}  e6 {[%clk 0:02:59]} 2. d4 {[%clk 0:02:59]}  d5 {[%clk 0:03:00]} 3. Bd3 {[%clk 0:02:59]}  b6 {[%clk 0:02:56]} 4. exd5 {[%clk 0:02:50]}  Qxd5 {[%clk 0:02:53]} 5. Nf3 {[%clk 0:02:50]}  Bb7 {[%clk 0:02:49]} 6. c4 {[%clk 0:02:36]}  Qd6 {[%clk 0:02:40]} 7. O-O {[%clk 0:02:32]}  Nc6 {[%clk 0:02:35]} 8. Nc3 {[%clk 0:01:41]}  Nxd4 {[%clk 0:02:13]} 9. Be4 {[%clk 0:01:39]}  Nxf3+ {[%clk 0:02:10]} 10. Qxf3 {[%clk 0:01:39]}  c6 {[%clk 0:02:04]} 11. Rd1 {[%clk 0:01:37]}  Qc5 {[%clk 0:01:49]} 12. Be3 {[%clk 0:01:35]}  Qxc4 {[%clk 0:01:45]} 13. Rd4 {[%clk 0:01:29]}  Qc5 {[%clk 0:01:41]} 14. Rd3 {[%clk 0:01:13]}  Qc4 {[%clk 0:01:31]} 15. b3 {[%clk 0:01:11]}  Qxd3 {[%clk 0:01:23]} 16. Bxd3 {[%clk 0:01:11]}  Nf6 {[%clk 0:01:23]} 17. Ba6 {[%clk 0:00:45]}  Rb8 {[%clk 0:00:49]} 18. Bxb7 {[%clk 0:00:41]}  Rxb7 {[%clk 0:00:50]} 19. Qxc6+ {[%clk 0:00:40]}  Rd7 {[%clk 0:00:51]} 20. Rd1 {[%clk 0:00:37]}  Bb4 {[%clk 0:00:46]} 21. Qc8+ {[%clk 0:00:32]}  Ke7 {[%clk 0:00:45]} 22. Rxd7+ {[%clk 0:00:26]}  Nxd7 {[%clk 0:00:45]} 23. Bg5+ {[%clk 0:00:20]}  f6 {[%clk 0:00:44]} 24. Qxh8 {[%clk 0:00:19]}  Bxc3 {[%clk 0:00:41]} 25. Qxg7+ {[%clk 0:00:18]}  Kd6 {[%clk 0:00:42]} 26. Bf4+ {[%clk 0:00:17]}  e5 {[%clk 0:00:41]} 27. Be3 {[%clk 0:00:15]}  h5 {[%clk 0:00:41]} 28. h4 {[%clk 0:00:14]}  a5 {[%clk 0:00:40]} 29. g4 {[%clk 0:00:14]}  hxg4 {[%clk 0:00:39]} 30. h5 {[%clk 0:00:14]}  g3 {[%clk 0:00:39]} 31. fxg3 {[%clk 0:00:14]}  f5 {[%clk 0:00:39]} 32. h6 {[%clk 0:00:13]}  f4 {[%clk 0:00:37]} 33. gxf4 {[%clk 0:00:11]}  exf4 {[%clk 0:00:38]} 34. Qxc3 {[%clk 0:00:10]}  fxe3 {[%clk 0:00:36]} 35. h7 {[%clk 0:00:10]}  Ne5 {[%clk 0:00:36]} 36. h8=Q {[%clk 0:00:09]}  Nf3+ {[%clk 0:00:35]} 37. Kg2 {[%clk 0:00:09]}  e2 {[%clk 0:00:34]} 38. Qhf6+ {[%clk 0:00:07]}  Kd5 {[%clk 0:00:31]} 39. Qfxf3+ {[%clk 0:00:08]} 1-0


[Site "https://www.chess.com"]

[Event "Titled Tuesday Blitz August 1 Late 2023"]
[White "Poltorak, Sebastian"]
[Black "Kielinkei"]
[WhiteFideId "1199498"]
[WhiteElo "2538"]
[BlackElo "2420"]
[Result "0-1"]
[Round "7"]
[TimeControl "180+1"]
[Date "2023.08.01"]
[WhiteClock "0:00:02"]
[BlackClock "0:00:05"]
[Board "75"]

1. b3 {[%clk 0:03:00]}  e5 {[%clk 0:02:59]} 2. Bb2 {[%clk 0:02:57]}  Nc6 {[%clk 0:02:59]} 3. e3 {[%clk 0:02:55]}  d5 {[%clk 0:02:59]} 4. Bb5 {[%clk 0:02:54]}  Ne7 {[%clk 0:02:59]} 5. Bxe5 {[%clk 0:02:43]}  a6 {[%clk 0:03:00]} 6. Bxc6+ {[%clk 0:02:38]}  Nxc6 {[%clk 0:03:01]} 7. Bb2 {[%clk 0:02:35]}  Qg5 {[%clk 0:03:01]} 8. Kf1 {[%clk 0:02:30]}  Bg4 {[%clk 0:02:58]} 9. Nf3 {[%clk 0:02:28]}  Qh6 {[%clk 0:02:54]} 10. d3 {[%clk 0:02:22]}  O-O-O {[%clk 0:02:54]} 11. Nbd2 {[%clk 0:02:22]}  Bd6 {[%clk 0:02:50]} 12. h3 {[%clk 0:02:23]}  f5 {[%clk 0:02:46]} 13. a3 {[%clk 0:02:08]}  Rhe8 {[%clk 0:02:35]} 14. Kg1 {[%clk 0:01:51]}  Bh5 {[%clk 0:02:34]} 15. Qf1 {[%clk 0:01:47]}  f4 {[%clk 0:02:27]} 16. e4 {[%clk 0:01:42]}  dxe4 {[%clk 0:02:27]} 17. Nxe4 {[%clk 0:01:42]}  Bxf3 {[%clk 0:02:24]} 18. gxf3 {[%clk 0:01:42]}  Be5 {[%clk 0:02:13]} 19. c3 {[%clk 0:01:39]}  Qh5 {[%clk 0:01:47]} 20. Qe2 {[%clk 0:01:30]}  g6 {[%clk 0:01:09]} 21. Kh2 {[%clk 0:01:28]}  Ne7 {[%clk 0:01:05]} 22. d4 {[%clk 0:01:12]}  Bg7 {[%clk 0:01:04]} 23. Rhg1 {[%clk 0:01:12]}  Nf5 {[%clk 0:01:02]} 24. Rg4 {[%clk 0:01:09]}  Nh6 {[%clk 0:00:40]} 25. Rg2 {[%clk 0:00:52]}  Qd5 {[%clk 0:00:32]} 26. Qc2 {[%clk 0:00:50]}  Nf5 {[%clk 0:00:31]} 27. Rg4 {[%clk 0:00:32]}  h5 {[%clk 0:00:27]} 28. Rxg6 {[%clk 0:00:21]}  Nh4 {[%clk 0:00:27]} 29. Rxg7 {[%clk 0:00:21]}  Nxf3+ {[%clk 0:00:27]} 30. Kh1 {[%clk 0:00:21]}  Rxe4 {[%clk 0:00:26]} 31. c4 {[%clk 0:00:19]}  Qf5 {[%clk 0:00:22]} 32. Kg2 {[%clk 0:00:11]}  Ng5 {[%clk 0:00:11]} 33. Rxg5 {[%clk 0:00:11]}  Qxg5+ {[%clk 0:00:11]} 34. Kh1 {[%clk 0:00:09]}  Rde8 {[%clk 0:00:11]} 35. Bc3 {[%clk 0:00:06]}  Re2 {[%clk 0:00:09]} 36. Qd3 {[%clk 0:00:05]}  Rxf2 {[%clk 0:00:09]} 37. Rg1 {[%clk 0:00:06]}  Qh4 {[%clk 0:00:07]} 38. Qf5+ {[%clk 0:00:02]}  Kb8 {[%clk 0:00:07]} 39. d5 {[%clk 0:00:01]}  Rf3 {[%clk 0:00:04]} 40. Bd4 {[%clk 0:00:01]}  Rxh3+ {[%clk 0:00:04]} 41. Kg2 {[%clk 0:00:01]}  Rg3+ {[%clk 0:00:04]} 42. Kf1 {[%clk 0:00:02]}  Rxg1+ {[%clk 0:00:04]} 43. Bxg1 {[%clk 0:00:02]}  Qe1+ {[%clk 0:00:04]} 44. Kg2 {[%clk 0:00:02]}  Rg8+ {[%clk 0:00:04]} 45. Kh3 {[%clk 0:00:02]}  Qg3# {[%clk 0:00:05]} 0-1


[Site "https://www.chess.com"]